bitfinex/quotes_ETHUSD_20230701
["timestamp","ask_amount","ask_price","bid_price","bid_amount"]
[1688232218640,10.4114,1921.0,1920.5,16.25587]
[1688232223468,13.01421,1921.0,1920.5,16.25587]
[1688232235952,13.01421,1921.0,1920.5,14.6938]
[1688232236251,2.68752184,1920.9,1920.3,0.949]
[1688232236452,13.01591,1920.8,1920.3,12.07721]
[1688232236650,15.70343184,1920.8,1920.3,12.07721]
[1688232237049,17.78913184,1920.8,1920.3,12.07721]
[1688232237250,5.20676,1920.6,1920.3,12.07721]
[1688232238559,5.20676,1920.6,1920.3,14.68096]
[1688232243662,1.5041,1920.7,1920.3,14.68096]
[1688232243892,4.77322184,1920.8,1920.3,14.68096]
[1688232244111,6.15471,1921.0,1920.3,14.68096]
[1688232244112,11.36047,1921.0,1920.3,14.68096]
[1688232244275,16.11360984,1921.0,1920.3,16.504334]
[1688232244613,16.53873121,1921.0,1920.3,16.504334]
[1688232245095,10.83659137,1921.0,1920.5,13.01691]
[1688232245982,10.83659137,1921.0,1920.5,14.66111]
[1688232246760,10.83659137,1921.0,1920.5,13.01691]
[1688232247182,10.83659137,1921.0,1920.5,14.66111]
[1688232247978,10.83659137,1921.0,1920.5,13.01691]
[1688232248366,10.83659137,1921.0,1920.5,16.294251]
[1688232249303,13.43940137,1921.0,1920.5,16.294251]
[1688232249502,13.43940137,1921.0,1920.5,14.70531]
[1688232250004,3.62852184,1920.9,1920.5,5.20676]
[1688232250303,3.62852184,1920.9,1920.4,7.13065]
[1688232250304,13.01551,1920.8,1920.4,5.20712]
[1688232250498,15.70303184,1920.8,1920.4,5.20712]
[1688232250666,17.52547502,1920.8,1920.4,5.20712]
[1688232252570,2.68752184,1920.7,1920.4,5.20712]
[1688232252803,5.2067,1920.6,1920.4,5.20712]
[1688232252978,5.2067,1920.6,1920.4,10.41436]
[1688232253907,13.10063184,1920.7,1920.4,10.41436]
[1688232254085,15.05761834,1920.7,1920.4,10.41436]
[1688232254708,15.05761834,1920.7,1920.3,5.20741]
[1688232254878,17.677391,1920.7,1920.1,7.176846]
[1688232255086,17.677391,1920.7,1920.1,14.988936]
[1688232255679,19.311091,1920.7,1920.1,14.988936]
[1688232255876,10.41413,1920.5,1920.1,14.988936]
[1688232256413,5.20702,1920.5,1920.1,14.988936]
[1688232256908,10.41404,1920.5,1920.1,12.384906]
[1688232258591,10.41404,1920.5,1920.1,5.255346]
[1688232259919,10.41404,1920.5,1920.1,10.463406]
[1688232260488,11.90889091,1920.5,1920.1,10.463406]
[1688232261429,10.41404,1920.5,1920.1,10.463406]
[1688232263220,10.41404,1920.5,1920.1,5.255346]
[1688232265421,10.41404,1920.5,1920.1,10.463406]
[1688232266622,5.20702,1920.5,1920.1,13.067436]
[1688232266825,14.7507845,1920.7,1920.1,13.067436]
[1688232266993,12.06314266,1920.7,1920.2,1.7054]
[1688232267198,12.06314266,1920.7,1920.3,10.41476]
[1688232267398,12.06314266,1920.7,1920.3,13.01851]
[1688232268829,14.66635266,1920.7,1920.3,10.41476]
[1688232269051,16.6400292,1920.7,1920.3,10.41476]
[1688232269226,2.68752184,1920.6,1920.2,6.91294]
[1688232269419,10.41401,1920.5,1920.3,5.20742]
[1688232270217,10.41401,1920.5,1920.2,5.20754]
[1688232270416,10.41401,1920.5,1920.1,5.255466]
[1688232271246,10.41401,1920.5,1920.1,10.463526]
[1688232272296,12.18271918,1920.5,1920.1,5.255466]
[1688232279547,14.87024102,1920.5,1920.1,5.255466]
[1688232282059,14.87024102,1920.5,1920.1,10.463526]
[1688232282453,13.10153184,1920.5,1920.1,10.463526]
[1688232286066,7.89450184,1920.5,1920.1,10.463526]
[1688232286362,13.10153184,1920.5,1920.1,13.067556]
[1688232293269,13.10153184,1920.5,1920.1,5.255466]
[1688232293470,13.10153184,1920.5,1920.1,10.463526]
[1688232297151,13.10153184,1920.5,1920.1,13.067556]
[1688232297481,4.5669392,1920.7,1920.1,13.067556]
[1688232297482,5.22310266,1920.7,1920.1,15.5880916]
[1688232297682,10.42964266,1920.7,1920.1,15.5880916]
[1688232298384,10.42964266,1920.7,1920.2,6.81617]
[1688232298961,10.42964266,1920.7,1920.2,12.02396]
[1688232299480,13.03285266,1920.7,1920.2,12.02396]
[1688232299663,14.74053734,1920.7,1920.2,12.02396]
[1688232300359,14.74053734,1920.7,1920.2,6.81617]
[1688232300863,14.74053734,1920.7,1920.2,12.02396]
[1688232303496,14.74053734,1920.7,1920.2,14.62785]
[1688232303980,13.03285266,1920.7,1920.2,14.62785]
[1688232307460,12.98285266,1920.7,1920.2,14.62785]
[1688232308303,12.98285266,1920.7,1920.2,12.02396]
[1688232317308,12.98285266,1920.7,1920.2,14.62785]
[1688232317808,12.98285266,1920.7,1920.2,15.57085]
[1688232318014,12.98285266,1920.7,1920.4,10.41443]
[1688232320001,10.37964266,1920.7,1920.4,10.41443]
[1688232321796,10.37964266,1920.7,1920.4,5.20719]
[1688232322017,10.37964266,1920.7,1920.4,10.41443]
[1688232322528,10.37964266,1920.7,1920.4,5.20719]
[1688232323321,10.37964266,1920.7,1920.4,10.41443]
[1688232324622,10.37964266,1920.7,1920.4,11.716248]
[1688232324804,1.6423,1920.9,1920.4,14.319868]
[1688232325005,8.20599,1920.9,1920.4,15.947768]
[1688232325200,13.41198,1920.9,1920.4,15.947768]
[1688232325402,16.01492,1920.9,1920.4,15.947768]
[1688232325601,16.01492,1920.9,1920.6,5.2067]
[1688232326319,16.43388362,1920.9,1920.6,5.2067]
[1688232326521,16.43388362,1920.9,1920.5,6.8016868]
[1688232326522,16.43388362,1920.9,1920.5,12.0085968]
[1688232328750,16.43388362,1920.9,1920.5,6.8016868]
[1688232328959,16.43388362,1920.9,1920.5,5.20691]
[1688232335506,13.83094362,1920.9,1920.5,10.41388]
[1688232335711,0.41896362,1920.9,1920.5,10.41388]
[1688232335920,5.70579,1921.0,1920.5,10.41388]
[1688232336119,3.6634,1921.3,1920.5,13.95836]
[1688232336319,3.6634,1921.3,1920.6,4.009136]
[1688232336320,0.42560567,1921.0,1920.6,4.009136]
[1688232336616,10.41097,1921.1,1920.8,10.41226]
[1688232337504,5.20548,1921.1,1920.8,10.41226]
[1688232337707,5.20548,1921.1,1920.8,5.20613]
[1688232337909,5.20548,1921.1,1920.8,10.41229]
[1688232338638,10.41096,1921.1,1920.8,10.41229]
[1688232338937,10.41096,1921.1,1920.8,5.20613]
[1688232340437,10.41096,1921.1,1920.7,10.41258]
[1688232340826,10.41096,1921.1,1920.7,5.20626]
[1688232341753,13.01363,1921.1,1920.7,5.20626]
[1688232342050,13.01363,1921.1,1920.7,10.41269]
[1688232345845,17.26276984,1921.1,1920.6,6.88940365]
[1688232346150,17.26276984,1921.1,1920.6,12.09597365]
[1688232346324,20.82246984,1921.1,1920.6,12.09597365]
[1688232347314,21.2314341,1921.1,1920.6,12.09597365]
[1688232349350,21.2314341,1921.1,1920.6,6.88940365]
[1688232349552,2.12314341,1921.0,1920.6,1.68286365]
[1688232349719,10.41187,1920.9,1920.6,1.68286365]
[1688232350323,10.40394447,1920.9,1920.6,1.68286365]
[1688232351331,13.00688447,1920.9,1920.6,0.01656365]
[1688232351726,13.00688447,1920.9,1920.4,1.6031]
[1688232351924,17.2074091,1920.9,1920.4,1.6031]
[1688232352255,20.7081091,1920.9,1920.4,6.81032]
[1688232352749,20.7081091,1920.9,1920.4,12.01756]
[1688232355152,19.1253091,1920.9,1920.4,12.01756]
[1688232355321,19.1253091,1920.9,1920.4,6.81032]
[1688232356277,19.1253091,1920.9,1920.4,12.01756]
[1688232356766,14.92478447,1920.9,1920.4,13.48134762]
[1688232356946,1.9179,1920.9,1920.5,0.01656452]
[1688232357138,7.12383,1920.9,1920.6,10.4133]
[1688232357737,12.32976,1920.9,1920.6,10.4133]
[1688232359551,12.32976,1920.9,1920.6,5.20665]
[1688232359874,16.58774,1920.9,1920.5,5.22340452]
[1688232363290,16.58774,1920.9,1920.5,10.43037452]
[1688232363881,16.58774,1920.9,1920.5,5.22340452]
[1688232373826,16.58774,1920.9,1920.5,0.01656452]
[1688232377305,1.658774,1920.8,1920.5,0.01656452]
[1688232377504,5.20643,1920.7,1920.5,0.01656452]
[1688232378227,10.41286,1920.7,1920.5,0.01656452]
[1688232378503,15.70359184,1920.7,1920.1,7.198316]
[1688232378702,19.19129184,1920.7,1920.1,6.936116]
[1688232378903,5.20709,1920.5,1920.1,6.936116]
[1688232379111,5.20709,1920.5,1920.1,12.144176]
[1688232379472,12.33296918,1920.6,1920.1,14.748206]
[1688232379877,7.12603918,1920.6,1920.1,14.748206]
[1688232381804,12.33291918,1920.6,1920.1,14.748206]
[1688232382287,7.12600918,1920.6,1920.1,14.748206]
[1688232383083,12.33270918,1920.6,1920.1,14.748206]
[1688232383283,7.12582918,1920.6,1920.1,14.748206]
[1688232383482,12.33252918,1920.6,1920.1,14.748206]
[1688232383882,12.33252918,1920.6,1920.1,12.144176]
[1688232384295,12.33252918,1920.6,1920.1,6.936116]
[1688232387017,12.33252918,1920.6,1920.1,12.144176]
[1688232387615,12.33252918,1920.6,1920.1,10.463476]
[1688232388004,14.93587918,1920.6,1920.1,5.255416]
[1688232390619,14.93587918,1920.6,1920.1,5.255536]
[1688232390785,14.93587918,1920.6,1920.1,0.047516]
[1688232391637,14.93587918,1920.6,1920.1,5.255396]
[1688232392129,14.93587918,1920.6,1920.1,10.463456]
[1688232392332,14.93587918,1920.6,1920.1,11.93828448]
[1688232393239,14.93587918,1920.6,1920.1,14.54231448]
[1688232394633,14.93587918,1920.6,1920.1,11.93828448]
[1688232394815,14.93587918,1920.6,1920.1,5.255396]
[1688232395507,14.93587918,1920.6,1920.1,0.047516]
[1688232395819,17.62340102,1920.6,1920.1,0.047516]
[1688232399039,2.68752184,1920.5,1920.1,0.047516]
[1688232399212,5.2073,1920.4,1920.1,10.463526]
[1688232399412,10.4146,1920.4,1920.1,10.463526]
[1688232400038,10.4146,1920.4,1920.1,5.255466]
[1688232400346,10.4146,1920.4,1920.1,0.047516]
[1688232401344,14.94424418,1920.4,1920.1,0.047516]
[1688232401846,14.94424418,1920.4,1920.1,5.255546]
[1688232403241,14.94424418,1920.4,1920.1,10.463606]
[1688232403242,10.4146,1920.4,1920.1,10.463606]
[1688232409145,10.4146,1920.4,1920.1,5.255546]
[1688232409361,13.01822,1920.4,1920.1,0.047516]
[1688232409517,10.4146,1920.4,1920.1,0.047516]
[1688232411440,13.01822,1920.4,1920.1,5.255536]
[1688232413142,17.63007602,1920.4,1920.1,0.047516]
[1688232424766,2.68752184,1920.3,1920.1,0.047516]
[1688232424959,10.41558,1920.2,1920.1,0.047516]
[1688232428841,5.2074,1920.4,1920.1,5.255576]
[1688232429393,3.5,1920.7,1920.1,11.406636]
[1688232429394,8.20656,1920.7,1920.1,11.406636]
[1688232429547,5.2065,1920.7,1920.3,13.01847]
[1688232429945,5.2065,1920.7,1920.3,13.03503624]
[1688232430573,10.413,1920.7,1920.3,13.03503624]
[1688232430778,13.01621,1920.7,1920.3,10.43132624]
[1688232433456,13.01621,1920.7,1920.3,5.22394624]
[1688232434356,13.01621,1920.7,1920.3,0.01656624]
[1688232437677,19.19379284,1920.7,1920.3,0.01656624]
[1688232440155,19.19379284,1920.7,1920.3,5.22407624]
[1688232445281,17.73043184,1920.7,1920.3,5.22407624]
[1688232446583,17.73043184,1920.7,1920.3,0.01656624]
[1688232455803,17.73043184,1920.7,1920.3,5.22407624]
[1688232458183,17.73043184,1920.7,1920.3,0.01656624]
[1688232461827,17.73043184,1920.7,1920.3,5.22407624]
[1688232466207,19.92553002,1920.7,1920.3,5.22407624]
[1688232467485,19.92553002,1920.7,1920.3,0.01656624]
[1688232472534,19.92553002,1920.7,1920.3,5.22406624]
[1688232475423,19.92553002,1920.7,1920.3,0.01656624]
[1688232478027,19.92553002,1920.7,1920.3,5.22406624]
[1688232478343,19.92553002,1920.7,1920.2,8.80032]
[1688232482438,19.92553002,1920.7,1920.2,15.4136836]
[1688232482841,17.73043184,1920.7,1920.2,15.4136836]
[1688232485018,17.73043184,1920.7,1920.2,10.2058936]
[1688232485236,17.73043184,1920.7,1920.2,8.80032]
[1688232495833,17.73043184,1920.7,1920.2,14.00811]
[1688232498170,17.73043184,1920.7,1920.2,8.80032]
[1688232499988,17.73043184,1920.7,1920.2,14.00811]
[1688232501404,12.4397,1920.7,1920.2,14.00811]
[1688232501613,10.413,1920.7,1920.3,1.400811]
[1688232501956,5.2065,1920.7,1920.3,10.41483]
[1688232502126,10.41264,1920.8,1920.3,13.96258]
[1688232502423,5.20643,1920.7,1920.3,13.01858]
[1688232503570,5.20643,1920.7,1920.5,5.20697]
[1688232503766,10.41286,1920.7,1920.5,5.20697]
[1688232503984,10.41286,1920.7,1920.5,6.511561]
[1688232504365,10.41286,1920.7,1920.5,1.304591]
[1688232504568,13.01607,1920.7,1920.4,1.6888]
[1688232505083,10.41286,1920.7,1920.4,6.89594]
[1688232505291,10.41286,1920.7,1920.4,1.6888]
[1688232506561,13.01607,1920.7,1920.4,1.6888]
[1688232507406,17.26550784,1920.7,1920.2,2.89556711]
[1688232507617,18.82350784,1920.7,1920.2,3.61986711]
[1688232507911,18.82350784,1920.7,1920.2,8.82759711]
[1688232508819,17.26550784,1920.7,1920.2,8.82759711]
[1688232509030,13.01607,1920.7,1920.2,16.63927711]
[1688232511140,13.01607,1920.7,1920.2,17.58227711]
[1688232513839,13.01607,1920.7,1920.2,14.97838711]
[1688232514038,13.01607,1920.7,1920.2,9.77051711]
[1688232514354,13.01607,1920.7,1920.2,11.27310942]
[1688232516052,13.01607,1920.7,1920.2,6.06545942]
[1688232517054,13.01607,1920.7,1920.2,11.27316942]
[1688232518956,14.62617,1920.7,1920.2,11.27316942]
[1688232520835,14.62617,1920.7,1920.1,0.047516]
[1688232520836,15.62127,1920.5,1920.1,0.047516]
[1688232521029,18.30879184,1920.5,1920.1,0.047516]
[1688232521227,24.01590184,1920.5,1920.1,0.047516]
[1688232521474,15.62252,1920.3,1920.1,0.047516]
[1688232521632,14.581722,1920.2,1920.1,0.047516]
[1688232528122,13.01947,1920.2,1920.1,0.047516]
[1688232529445,10.41558,1920.2,1920.1,0.047516]
[1688232530104,5.20779,1920.2,1920.1,0.047516]
[1688232530503,10.41558,1920.2,1920.1,0.047516]
[1688232532115,13.01947,1920.2,1920.1,0.047516]
[1688232536047,10.41558,1920.2,1920.1,0.047516]
[1688232537630,13.01947,1920.2,1920.1,0.047516]
[1688232546841,10.41558,1920.2,1920.1,0.047516]
[1688232548053,5.20779,1920.2,1920.1,0.047516]
[1688232548256,5.20732,1920.4,1920.1,5.7811586]
[1688232548456,5.6334338,1920.5,1920.1,11.9382186]
[1688232548657,10.41412,1920.5,1920.1,11.9382186]
[1688232549329,10.41412,1920.5,1920.1,14.5422486]
[1688232549542,10.41412,1920.5,1920.2,1.45422486]
[1688232549729,10.41412,1920.5,1920.2,6.66182486]
[1688232550825,10.41412,1920.5,1920.2,11.86961486]
[1688232552421,5.20659,1920.7,1920.2,12.81861486]
[1688232552619,5.20674,1920.6,1920.3,0.01656624]
[1688232552837,10.41348,1920.6,1920.3,12.13767335]
[1688232556764,10.41315,1920.7,1920.3,12.13767335]
[1688232557065,5.20657,1920.7,1920.3,12.13767335]
[1688232562271,5.20657,1920.7,1920.3,13.08067335]
[1688232565956,10.41315,1920.7,1920.3,13.08067335]
[1688232566156,10.41315,1920.7,1920.3,11.37442624]
[1688232567159,13.01636,1920.7,1920.3,11.37442624]
[1688232568468,13.01636,1920.7,1920.3,10.43142624]
[1688232573073,13.01636,1920.7,1920.3,5.22391624]
[1688232574005,13.01636,1920.7,1920.3,0.01656624]
[1688232574313,14.62035958,1920.7,1920.3,0.01656624]
[1688232574510,16.16595958,1920.7,1920.3,0.01656624]
[1688232575371,16.16595958,1920.7,1920.3,5.22404624]
[1688232575574,18.13455958,1920.7,1920.3,0.01656624]
[1688232577673,18.13455958,1920.7,1920.3,5.22404624]
[1688232578015,14.56196,1920.7,1920.3,10.43155624]
[1688232580593,14.56196,1920.7,1920.3,12.07105624]
[1688232585821,14.56196,1920.7,1920.3,6.86354624]
[1688232586328,14.56196,1920.7,1920.3,1.65606624]
[1688232586500,14.56196,1920.7,1920.3,0.01656624]
[1688232587023,16.53216,1920.7,1920.3,0.01656624]
[1688232588837,16.53216,1920.7,1920.3,5.22404624]
[1688232590204,18.48774258,1920.7,1920.3,5.22404624]
[1688232592332,16.53216,1920.7,1920.3,5.22404624]
[1688232594739,16.53216,1920.7,1920.3,0.01656624]
[1688232595730,16.53216,1920.7,1920.3,5.22402624]
[1688232596455,16.53216,1920.7,1920.3,0.01656624]
[1688232598543,16.53216,1920.7,1920.3,5.22406624]
[1688232599927,16.53216,1920.7,1920.3,0.01656624]
[1688232600129,18.48774258,1920.7,1920.3,0.01656624]
[1688232607458,18.48774258,1920.7,1920.1,0.047516]
[1688232607764,15.62132,1920.5,1920.1,0.047516]
[1688232612219,10.41422,1920.5,1920.1,5.255576]
[1688232612524,10.41408,1920.5,1920.1,13.067666]
[1688232613065,10.41408,1920.5,1920.1,14.799866]
[1688232613225,5.20697,1920.5,1920.1,16.10828948]
[1688232613628,5.20679,1920.6,1920.2,0.01656711]
[1688232613852,10.41363,1920.6,1920.3,10.41492]
[1688232614055,5.20679,1920.6,1920.3,11.71845171]
[1688232614268,7.17679,1920.7,1920.3,11.71845171]
[1688232614429,5.62683575,1920.8,1920.3,14.32220171]
[1688232614628,5.20645,1920.7,1920.3,14.32220171]
[1688232614860,5.20645,1920.7,1920.4,1.43222017]
[1688232615061,10.4129,1920.7,1920.4,6.63937017]
[1688232615643,13.01611,1920.7,1920.4,6.63937017]
[1688232615961,13.01611,1920.7,1920.4,1.43222017]
[1688232616165,13.01611,1920.7,1920.3,5.20742]
[1688232616829,13.01611,1920.7,1920.2,5.22416711]
[1688232617029,13.01611,1920.7,1920.2,5.22422711]
[1688232617363,13.01611,1920.7,1920.2,0.01656711]
[1688232618325,14.93641,1920.7,1920.2,0.01656711]
[1688232618530,1.493641,1920.6,1920.2,0.01656711]
[1688232618731,13.01757,1920.5,1920.2,0.01656711]
[1688232621169,13.01757,1920.5,1920.2,5.22434711]
[1688232623903,10.41406,1920.5,1920.2,5.22434711]
[1688232624198,10.41406,1920.5,1920.2,10.43213711]
[1688232626803,10.41406,1920.5,1920.2,5.22434711]
[1688232630910,13.01754,1920.5,1920.2,5.22434711]
[1688232631730,10.41406,1920.5,1920.2,10.43213711]
[1688232632128,7.12687,1920.7,1920.2,14.61171442]
[1688232632530,12.33341,1920.7,1920.2,14.61171442]
[1688232633310,14.93662,1920.7,1920.2,14.61171442]
[1688232635515,14.93662,1920.7,1920.2,12.00782442]
[1688232635915,14.93662,1920.7,1920.2,10.43213711]
[1688232636104,14.93662,1920.7,1920.2,5.22434711]
[1688232636837,14.93662,1920.7,1920.2,0.01656711]
[1688232637471,14.93662,1920.7,1920.1,1.779716]
[1688232637669,14.93662,1920.7,1920.1,0.047516]
[1688232637873,1.493662,1920.6,1920.1,0.047516]
[1688232638178,13.01777,1920.5,1920.1,0.047516]
[1688232639237,13.01777,1920.5,1920.1,5.255566]
[1688232641794,13.01777,1920.5,1920.1,10.463626]
[1688232642854,10.41422,1920.5,1920.1,10.463626]
[1688232643192,10.41422,1920.5,1920.1,13.067656]
[1688232645595,5.20706,1920.5,1920.1,13.067656]
[1688232646005,5.20684,1920.6,1920.1,14.4168706]
[1688232646208,5.20704,1920.5,1920.1,14.4168706]
[1688232647681,10.41408,1920.5,1920.1,14.4168706]
[1688232651613,10.41408,1920.5,1920.1,16.1392706]
[1688232654599,10.41408,1920.5,1920.1,14.790056]
[1688232656825,13.01756,1920.5,1920.1,12.186026]
[1688232662212,13.01756,1920.5,1920.1,0.047516]
[1688232663059,13.01756,1920.5,1920.1,5.255566]
[1688232663345,2.68752184,1920.4,1920.1,0.047516]
[1688232663545,10.41502,1920.3,1920.1,0.047516]
[1688232663751,5.20751,1920.3,1920.1,10.463476]
[1688232664442,14.40401784,1920.4,1920.1,10.463476]
[1688232664849,9.19659784,1920.4,1920.1,10.463476]
[1688232665157,0.91965978,1920.3,1920.1,10.463476]
[1688232665675,6.12725978,1920.3,1920.1,10.463476]
[1688232665949,6.12725978,1920.3,1920.1,5.255426]
[1688232665950,6.12716978,1920.3,1920.1,5.255426]
[1688232667219,0.91965978,1920.3,1920.1,10.463486]
[1688232667641,6.12721978,1920.3,1920.1,5.255426]
[1688232668475,11.33477978,1920.3,1920.1,5.255426]
[1688232668687,6.12721978,1920.3,1920.1,5.255426]
[1688232669559,11.33477978,1920.3,1920.1,5.255426]
[1688232671059,6.12721978,1920.3,1920.1,5.255426]
[1688232672250,5.82051198,1920.2,1920.1,0.047516]
[1688232672446,0.61272198,1920.2,1920.1,5.255576]
[1688232673375,5.82051198,1920.2,1920.1,5.255576]
[1688232674156,5.82051198,1920.2,1920.1,0.047516]
[1688232674995,11.02830198,1920.2,1920.1,0.047516]
[1688232676579,5.82051198,1920.2,1920.1,0.047516]
[1688232677084,11.02830198,1920.2,1920.1,0.047516]
[1688232686161,13.63219198,1920.2,1920.1,0.047516]
[1688232691765,17.26571382,1920.2,1920.1,0.047516]
[1688232693361,16.31971382,1920.2,1920.1,0.047516]
[1688232695649,16.74532245,1920.2,1920.1,0.047516]
[1688232699048,21.18832245,1920.2,1920.1,0.047516]
[1688232699332,21.66832245,1920.2,1920.1,0.047516]
[1688232709635,17.55780061,1920.2,1920.1,0.047516]
[1688232712558,25.45311245,1920.2,1920.1,0.047516]
[1688232712810,26.88211245,1920.2,1920.1,0.047516]
[1688232713382,25.93311245,1920.2,1920.1,0.047516]
[1688232714775,20.72532245,1920.2,1920.1,0.047516]
[1688232722284,16.94507863,1920.2,1920.1,0.047516]
[1688232724920,5.20706,1920.5,1920.1,0.06408396]
[1688232725215,5.20706,1920.5,1920.1,10.48020396]
[1688232725216,5.20713,1920.5,1920.1,10.48020396]
[1688232725387,5.20687,1920.6,1920.1,10.48020396]
[1688232725588,5.20701,1920.5,1920.3,0.944]
[1688232725787,5.20701,1920.5,1920.3,5.20747]
[1688232726516,10.41398,1920.5,1920.3,5.20747]
[1688232726894,5.20697,1920.5,1920.3,5.20747]
[1688232727088,5.20657,1920.7,1920.3,10.41498]
[1688232727406,5.20673,1920.6,1920.4,6.17278537]
[1688232727911,10.41346,1920.6,1920.4,6.17278537]
[1688232728415,10.41346,1920.6,1920.4,5.12178537]
[1688232728932,5.20673,1920.6,1920.4,5.12178537]
[1688232729115,10.41343,1920.6,1920.4,5.12178537]
[1688232729637,5.2067,1920.6,1920.4,5.12178537]
[1688232729783,5.2067,1920.6,1920.4,10.32902537]
[1688232730117,5.2067,1920.6,1920.3,11.82141904]
[1688232730118,10.4134,1920.6,1920.3,11.82141904]
[1688232730326,10.4134,1920.6,1920.3,12.76441904]
[1688232730691,13.01675,1920.6,1920.3,2.34968904]
[1688232735821,13.01675,1920.6,1920.3,7.55717904]
[1688232736017,10.4134,1920.6,1920.3,12.76468904]
[1688232736848,5.2067,1920.6,1920.3,12.76468904]
[1688232737219,10.4134,1920.6,1920.3,12.76468904]
[1688232737420,10.4134,1920.6,1920.3,7.55717904]
[1688232737421,13.01675,1920.6,1920.3,7.55717904]
[1688232740848,13.01675,1920.6,1920.3,2.34968904]
[1688232741749,13.01675,1920.6,1920.3,0.943]
[1688232744751,13.01675,1920.6,1920.3,6.15048]
[1688232744954,13.01675,1920.6,1920.3,0.943]
[1688232745355,13.01675,1920.6,1920.3,6.15051]
[1688232745533,10.4134,1920.6,1920.3,6.15051]
[1688232745735,10.4134,1920.6,1920.3,11.35802]
[1688232746140,10.4134,1920.6,1920.3,13.09824]
[1688232747966,5.2067,1920.6,1920.3,13.09824]
[1688232748933,10.4134,1920.6,1920.3,13.09824]
[1688232749267,10.4134,1920.6,1920.3,11.35802]
[1688232750072,10.4134,1920.6,1920.3,6.15051]
[1688232752835,13.01675,1920.6,1920.3,6.15051]
[1688232753459,13.01675,1920.6,1920.3,5.20751]
[1688232756077,3.1570343,1920.9,1920.4,0.942]
[1688232756268,3.1570343,1920.9,1920.5,5.20686]
[1688232756269,10.41307,1920.7,1920.5,5.20686]
[1688232757587,10.41307,1920.7,1920.4,7.82517]
[1688232757883,10.41307,1920.7,1920.4,12.09041]
[1688232759745,5.20652,1920.7,1920.4,12.09041]
[1688232760043,5.7601043,1920.9,1920.5,0.947]
[1688232760249,8.7601043,1920.9,1920.6,5.20665]
[1688232761499,2.6028,1921.1,1920.6,5.20665]
[1688232761500,5.2055,1921.1,1920.8,0.949]
[1688232761684,5.2055,1921.1,1920.8,6.15495]
[1688232762884,5.2055,1921.1,1920.8,11.36111]
[1688232763399,5.20545,1921.1,1920.8,6.15495]
[1688232764204,10.4108,1921.1,1920.8,6.15495]
[1688232765905,10.4108,1921.1,1920.8,11.36111]
[1688232766104,10.4108,1921.1,1920.8,12.757541]
[1688232767483,10.4108,1921.1,1920.8,7.551381]
[1688232767667,10.4108,1921.1,1920.8,6.15495]
[1688232768471,10.4108,1921.1,1920.8,5.20595]
[1688232768874,10.4108,1921.1,1920.7,6.14831]
[1688232769211,13.01347,1921.1,1920.7,6.14831]
[1688232769369,14.35680226,1921.1,1920.6,3.6711]
[1688232769773,14.35680226,1921.1,1920.6,8.87772]
[1688232769969,15.86250226,1921.1,1920.6,8.87772]
[1688232770794,15.86250226,1921.1,1920.6,1.9429]
[1688232771407,15.86250226,1921.1,1920.6,7.14959]
[1688232771619,1.58625023,1921.0,1920.6,7.14959]
[1688232771791,10.41188,1920.9,1920.6,7.14959]
[1688232771991,10.41188,1920.9,1920.6,5.20669]
[1688232772903,10.41188,1920.9,1920.6,10.41339]
[1688232773924,10.41188,1920.9,1920.6,5.20669]
[1688232776325,11.87198002,1920.9,1920.5,10.41366]
[1688232776528,11.87198002,1920.9,1920.5,5.20682]
[1688232777835,10.41188,1920.9,1920.5,5.20682]
[1688232778826,10.41188,1920.9,1920.4,12.43559]
[1688232778827,13.01482,1920.9,1920.4,3.6809]
[1688232779034,13.01482,1920.9,1920.3,0.944]
[1688232779035,13.01482,1920.9,1920.3,6.15132]
[1688232779343,13.01482,1920.9,1920.2,14.9056]
[1688232779539,13.01482,1920.9,1920.2,9.69792]
[1688232779720,5.20664,1920.7,1920.2,14.90571]
[1688232779916,10.41328,1920.7,1920.2,14.90571]
[1688232780245,10.41328,1920.7,1920.2,9.69792]
[1688232780842,10.41328,1920.7,1920.2,14.90571]
[1688232782752,10.41328,1920.7,1920.2,17.5096]
[1688232783049,10.41328,1920.7,1920.2,19.56844355]
[1688232784059,10.41328,1920.7,1920.2,16.96455355]
[1688232784457,10.41328,1920.7,1920.2,19.56844355]
[1688232784831,5.20664,1920.7,1920.2,19.56844355]
[1688232785620,10.41307,1920.7,1920.2,19.56844355]
[1688232785954,10.41307,1920.7,1920.3,1.95684436]
[1688232786152,10.41307,1920.7,1920.4,10.41438]
[1688232786756,10.41307,1920.7,1920.4,5.20719]
[1688232787052,10.41307,1920.7,1920.4,5.20716]
[1688232787752,13.01628,1920.7,1920.3,5.20734]
[1688232787991,14.674578,1920.7,1920.2,14.90567]
[1688232789363,14.674578,1920.7,1920.2,7.86738]
[1688232789564,14.674578,1920.7,1920.2,2.6597]
[1688232789764,14.674578,1920.7,1920.2,5.2077]
[1688232789973,14.674578,1920.7,1920.1,10.463266]
[1688232790174,1.4674578,1920.6,1920.1,10.463266]
[1688232790375,10.41422,1920.5,1920.1,13.067296]
[1688232790890,10.41422,1920.5,1920.1,14.674696]
[1688232792192,5.20644,1920.7,1920.1,14.674696]
[1688232792486,5.20678,1920.6,1920.3,10.41476]
[1688232792875,10.41356,1920.6,1920.3,10.41476]
[1688232793671,10.41356,1920.6,1920.3,5.20738]
[1688232798000,10.41356,1920.6,1920.3,10.41489]
[1688232798202,5.20659,1920.7,1920.3,11.811066]
[1688232798404,10.41319,1920.7,1920.3,11.811066]
[1688232799122,13.0164,1920.7,1920.3,13.486666]
[1688232799275,13.0164,1920.7,1920.3,12.09049]
[1688232799470,13.0164,1920.7,1920.3,6.88298]
[1688232807040,13.0164,1920.7,1920.3,12.09049]
[1688232809738,13.0164,1920.7,1920.3,6.88298]
[1688232811363,14.68357654,1920.7,1920.3,6.88298]
[1688232813726,14.68357654,1920.7,1920.3,1.6756]
[1688232814771,14.68357654,1920.7,1920.3,6.88303]
[1688232820861,10.41319,1920.7,1920.3,12.09054]
[1688232822899,10.41319,1920.7,1920.3,14.69429]